bitfinex/quotes_SOLUSD_20250421
["timestamp","ask_amount","ask_price","bid_price","bid_amount"]
[1745276245288,21.72667126,136.12,136.1,10.64059392]
[1745276245495,14.38,136.12,136.11,10.64059392]
[1745276245797,21.726459,136.12,136.1,10.64059392]
[1745276246877,21.726459,136.12,136.09,10.64059392]
[1745276247796,21.726459,136.12,136.07,18.79181043]
[1745276247797,32.36705292,136.12,136.07,10.64059392]
[1745276247979,32.36705292,136.12,136.08,10.64059392]
[1745276249000,32.36705292,136.12,136.07,10.64059392]
[1745276249494,10.64059392,136.11,136.06,36.64059392]
[1745276249699,10.64059392,136.11,136.06,10.64059392]
[1745276250793,17.98867239,136.09,136.05,81.048]
[1745276251104,17.98867239,136.09,136.04,10.64059392]
[1745276251399,17.98867239,136.09,136.05,10.64059392]
[1745276258299,36.35886858,136.09,136.05,10.64059392]
[1745276258475,14.38,136.12,136.08,10.64059392]
[1745276258680,25.02059392,136.12,136.08,10.64059392]
[1745276258980,25.02059392,136.12,136.07,10.64059392]
[1745276259707,7.34699875,136.11,136.07,10.64059392]
[1745276260604,10.64059392,136.1,136.04,0.14216157]
[1745276260792,10.64059392,136.1,136.05,10.64059392]
[1745276261102,36.35508954,136.11,136.06,10.64059392]
[1745276261297,36.35508954,136.11,136.07,10.64059392]
[1745276261497,36.35508954,136.11,136.05,26.0]
[1745276261887,36.35508954,136.11,136.07,10.64059392]
[1745276263214,36.35508954,136.11,136.05,26.0]
[1745276263387,36.35508954,136.11,136.06,10.64059392]
[1745276264205,36.35508954,136.11,136.05,26.0]
[1745276264411,10.64059392,136.09,136.05,10.64059392]
[1745276264906,10.64059392,136.09,136.04,10.64059392]
[1745276265690,7.34861845,136.08,136.04,10.64059392]
[1745276266186,7.34753857,136.1,136.07,10.64059392]
[1745276266387,7.34753857,136.1,136.06,10.64059392]
[1745276268013,17.98813249,136.1,136.05,10.64059392]
[1745276268603,10.64059392,136.08,136.02,26.0]
[1745276268808,10.64059392,136.09,136.02,26.0]
[1745276269000,10.64059392,136.09,136.04,10.64059392]
[1745276269406,36.35697892,136.1,136.05,10.64059392]
[1745276270112,36.35697892,136.1,136.06,10.64059392]
[1745276270113,17.98813249,136.1,136.06,10.64059392]
[1745276270290,7.34753857,136.1,136.06,10.64059392]
[1745276271093,7.34753857,136.1,136.07,10.64059392]
[1745276272919,7.34753857,136.1,136.06,10.64059392]
[1745276273105,17.98813249,136.1,136.05,10.64059392]
[1745276273918,36.35697892,136.1,136.05,10.64059392]
[1745276274413,7.34753857,136.1,136.02,26.14216157]
[1745276274614,7.34753857,136.1,136.06,10.64059392]
[1745276275516,7.34699875,136.11,136.06,10.64059392]
[1745276275818,17.98759267,136.11,136.06,10.64059392]
[1745276276222,7.34699875,136.11,136.07,10.64059392]
[1745276278325,17.98759267,136.11,136.06,10.64059392]
[1745276278520,10.64059392,136.1,136.05,10.64059392]
[1745276279429,36.35508954,136.11,136.06,10.64059392]
[1745276281428,25.71449562,136.11,136.06,10.64059392]
[1745276281828,36.35508954,136.11,136.06,10.64059392]
[1745276282130,10.64059392,136.1,136.04,0.14216157]
[1745276282430,10.64059392,136.1,136.05,10.64059392]
[1745276284035,25.71449562,136.11,136.05,10.64059392]
[1745276284336,7.34807847,136.09,136.05,10.64059392]
[1745276285220,7.34807847,136.09,136.06,10.64059392]
[1745276286438,7.34753857,136.1,136.06,10.64059392]
[1745276287827,25.71449562,136.11,136.06,10.64059392]
[1745276288032,36.35508954,136.11,136.06,10.64059392]
[1745276288229,25.71449562,136.11,136.07,10.64059392]
[1745276288734,7.34699875,136.11,136.07,10.64059392]
[1745276290640,17.98759267,136.11,136.06,10.64059392]
[1745276291137,10.64059392,136.1,136.04,0.14216157]
[1745276291334,10.64059392,136.1,136.05,10.64059392]
[1745276293037,7.34807847,136.09,136.05,10.64059392]
[1745276294232,7.34807847,136.09,136.06,10.64059392]
[1745276295241,17.98813249,136.1,136.05,10.64059392]
[1745276295438,36.35697892,136.1,136.05,10.64059392]
[1745276296339,10.64059392,136.08,136.03,10.64059392]
[1745276297344,7.34915852,136.07,136.03,10.64059392]
[1745276297728,7.34915852,136.07,136.04,10.64059392]
[1745276298745,7.34861845,136.08,136.04,10.64059392]
[1745276301124,7.34833615,136.09,136.06,10.64059392]
[1745276302246,25.716385,136.1,136.06,10.64059392]
[1745276302449,36.35697892,136.1,136.06,10.64059392]
[1745276302740,36.35697892,136.1,136.05,10.64059392]
[1745276302916,10.64059392,136.09,136.05,10.64059392]
[1745276303534,7.34861845,136.08,136.05,10.64059392]
[1745276305747,7.34807847,136.09,136.05,10.64059392]
[1745276309127,18.36884643,136.1,136.05,10.64059392]
[1745276309327,29.00944035,136.1,136.05,10.64059392]
[1745276311554,10.64059392,136.09,136.04,10.64059392]
[1745276313851,7.34861845,136.08,136.04,10.64059392]
[1745276314558,7.34861845,136.08,136.05,10.64059392]
[1745276315953,7.34807847,136.09,136.05,10.64059392]
[1745276317955,34.40378908,136.12,136.07,10.64059392]
[1745276318134,34.40378908,136.12,136.08,10.64059392]
[1745276318336,34.40378908,136.12,136.07,10.64059392]
[1745276319255,7.34699875,136.11,136.07,10.64059392]
[1745276319560,7.34699875,136.11,136.08,10.64059392]
[1745276322755,7.34699875,136.11,136.07,10.64059392]
[1745276324749,7.34699875,136.11,136.08,10.64059392]
[1745276327061,7.34699875,136.11,136.07,10.64059392]
[1745276336972,17.98759267,136.11,136.07,10.64059392]
[1745276342169,10.64059392,136.1,136.06,10.64059392]
[1745276342373,10.64059392,136.08,136.03,18.64964886]
[1745276342581,10.64059392,136.09,136.04,10.64059392]
[1745276344472,25.71449562,136.11,136.05,10.78275549]
[1745276344473,7.34753857,136.1,136.05,10.78275549]
[1745276344685,7.34753857,136.1,136.07,10.64059392]
[1745276344889,7.34753857,136.1,136.06,10.64059392]
[1745276349472,25.71449562,136.11,136.07,10.64059392]
[1745276350482,7.34699875,136.11,136.07,10.64059392]
[1745276354369,7.34699875,136.11,136.06,10.64059392]
[1745276354570,25.71449562,136.11,136.03,18.64964886]
[1745276354903,10.64059392,136.09,136.03,10.78275549]
[1745276355073,10.64059392,136.09,136.03,10.64059392]
[1745276355468,10.64059392,136.09,136.04,10.64059392]
[1745276355889,7.34807847,136.09,136.05,10.64059392]
[1745276356064,10.64059392,136.08,136.03,10.78275549]
[1745276356265,17.98867239,136.09,136.04,10.64059392]
[1745276359590,17.98867239,136.09,136.03,0.14216157]
[1745276359898,10.64059392,136.08,136.03,0.14216157]
[1745276360076,36.35886858,136.09,136.04,10.64059392]
[1745276363595,36.35886858,136.09,136.03,0.14216157]
[1745276363785,10.64059392,136.08,136.03,0.14216157]
[1745276363982,10.64059392,136.08,136.03,10.78275549]
[1745276364194,36.35886858,136.09,136.03,10.78275549]
[1745276367604,10.64059392,136.08,136.03,0.14216157]
[1745276367789,10.64059392,136.08,136.03,10.78275549]
[1745276368102,32.13787466,136.09,136.03,10.78275549]
[1745276368277,10.64059392,136.08,136.03,10.78275549]
[1745276370209,17.98975244,136.07,136.02,117.68859392]
[1745276371813,17.98975244,136.07,136.02,36.64059392]
[1745276372099,17.98975244,136.07,136.02,10.64059392]
[1745276372310,18.37260075,136.08,136.01,0.14216157]
[1745276372311,17.9908328,136.05,136.01,0.14216157]
[1745276372601,7.35023888,136.05,136.01,0.14216157]
[1745276373688,10.64059392,136.05,136.01,0.14216157]
[1745276374104,10.64059392,136.06,136.01,10.78275549]
[1745276376313,7.35023888,136.05,136.01,10.78275549]
[1745276378018,17.9908328,136.05,136.0,10.64059392]
[1745276380299,25.72394531,136.06,136.0,10.64059392]
[1745276380498,10.64059392,136.05,136.0,10.64059392]
[1745276380998,25.72394531,136.06,136.0,10.64059392]
[1745276381296,10.64059392,136.05,136.0,10.64059392]
[1745276383414,7.35077918,136.04,136.0,10.64059392]
[1745276387018,7.35077918,136.04,135.99,18.79181043]
[1745276387224,10.64059392,136.02,135.98,81.048]
[1745276387430,10.64059392,136.02,135.98,0.14216157]
[1745276388426,10.64059392,136.02,135.98,10.78275549]
[1745276389924,7.35240055,136.01,135.98,10.78275549]
[1745276391126,10.64059392,136.03,135.98,0.14216157]
[1745276391329,10.64059392,136.03,135.98,10.78275549]
[1745276391512,10.64059392,136.02,135.98,0.14216157]
[1745276393131,10.64059392,136.03,135.99,10.64059392]
[1745276393836,10.64059392,136.03,135.98,10.78275549]
[1745276395732,7.35186002,136.02,135.98,10.78275549]
[1745276399836,7.35186002,136.02,135.99,10.64059392]
[1745276400525,7.35186002,136.02,135.98,10.64059392]
[1745276400832,7.35186002,136.02,135.98,10.78275549]
[1745276402237,10.64059392,136.01,135.95,81.048]
[1745276402413,10.64059392,136.0,135.95,107.048]
[1745276402736,10.64059392,136.0,135.95,117.68859392]
[1745276403147,10.64059392,135.98,135.93,18.64964886]
[1745276403315,10.64059392,135.97,135.91,101.29874886]
[1745276403651,10.64059392,135.97,135.92,37.89551132]
[1745276403812,10.64059392,135.98,135.93,10.64059392]
[1745276404013,10.64059392,135.97,135.92,37.89551132]
[1745276404425,17.99556756,135.97,135.93,10.64059392]
[1745276406638,17.99556756,135.97,135.92,1.2549174]
[1745276406845,17.99556756,135.97,135.92,11.89551132]
[1745276407036,32.37556756,135.97,135.92,11.89551132]
[1745276407551,10.64059392,135.96,135.92,1.2549174]
[1745276409437,21.73497364,135.97,135.92,1.2549174]
[1745276409637,10.64059392,135.96,135.92,1.2549174]
[1745276412045,17.99623937,135.95,135.92,1.2549174]
[1745276412626,10.64059392,135.94,135.92,1.2549174]
[1745276413834,7.35672772,135.93,135.92,1.2549174]
[1745276414749,17.99692431,135.94,135.92,1.2549174]
[1745276416631,7.35566652,135.95,135.92,11.89551132]
[1745276417245,7.35566652,135.95,135.92,1.2549174]
[1745276419142,17.99626044,135.95,135.92,1.2549174]
[1745276422565,7.35504486,135.97,135.93,10.64059392]
[1745276423062,17.99563878,135.97,135.93,10.64059392]
[1745276423555,7.35504486,135.97,135.93,10.64059392]
[1745276424457,14.38,135.99,135.96,10.64059392]
[1745276424659,14.38,135.99,135.97,10.64059392]
[1745276424826,7.35333491,136.0,135.97,10.64059392]
[1745276425457,7.35333491,136.0,135.96,10.64059392]
[1745276428974,17.99392883,136.0,135.96,10.64059392]
[1745276430378,7.35333491,136.0,135.97,10.64059392]
[1745276433774,7.35333491,136.0,135.96,10.64059392]
[1745276442475,7.35259325,136.01,135.97,10.64059392]
[1745276442674,14.38,136.03,136.0,10.64059392]
[1745276442856,14.38,136.03,136.01,10.64059392]
[1745276443257,7.7848,136.06,136.02,10.64059392]
[1745276444171,7.35037753,136.05,136.02,10.64059392]
[1745276444989,14.38,136.07,136.04,10.64059392]
[1745276445157,14.38,136.07,136.03,10.64059392]
[1745276445780,21.72923964,136.07,136.03,10.64059392]
[1745276451483,21.72923964,136.07,136.04,10.64059392]
[1745276452781,21.72923964,136.07,136.03,10.64059392]
[1745276454688,32.36983356,136.07,136.03,10.64059392]
[1745276455184,32.36983356,136.07,136.02,10.64059392]
[1745276455385,32.36983356,136.07,136.02,0.14216157]
[1745276455573,32.36983356,136.07,136.02,10.78275549]
[1745276456590,10.64059392,136.06,136.01,10.64059392]
[1745276456977,7.35023888,136.05,136.01,10.64059392]
[1745276460898,10.64059392,136.04,135.98,81.048]
[1745276461076,10.64059392,136.01,135.96,10.64059392]
[1745276461278,115.37593608,136.05,135.97,10.64059392]
[1745276461481,115.37593608,136.05,136.0,10.64059392]
[1745276461677,44.21653,136.05,136.0,10.64059392]
[1745276461999,10.64059392,136.04,135.99,10.64059392]
[1745276462300,10.64059392,136.04,136.0,10.64059392]
[1745276462898,7.35131956,136.03,136.0,10.64059392]
[1745276463488,17.99191348,136.03,135.98,10.78275549]
[1745276463688,17.99191348,136.03,135.99,10.64059392]
[1745276463885,7.35131956,136.03,135.99,10.64059392]
[1745276464307,7.35131956,136.03,135.98,0.14216157]
[1745276464506,7.35131956,136.03,135.99,10.64059392]
[1745276464688,10.64059392,136.03,135.99,10.64059392]
[1745276465192,17.9913731,136.04,136.0,10.64059392]
[1745276465502,17.9913731,136.04,135.99,10.64059392]
[1745276465703,10.64059392,136.03,135.99,10.64059392]
[1745276466603,7.35186002,136.02,135.99,10.64059392]
[1745276466989,7.35186002,136.02,135.98,10.64059392]
[1745276471301,17.99245394,136.02,135.98,10.64059392]
[1745276471506,17.99245394,136.02,135.97,36.64059392]
[1745276471711,10.64059392,136.01,135.97,10.64059392]
[1745276471900,10.64059392,136.01,135.96,10.64059392]
[1745276472099,10.64059392,135.99,135.95,10.78275549]
[1745276472294,10.64059392,135.99,135.95,10.64059392]
[1745276472499,10.64059392,135.98,135.92,116.81526626]
[1745276472692,10.64059392,135.98,135.94,10.64059392]
[1745276473705,10.64059392,135.98,135.93,10.64059392]
[1745276474117,7.3545635,135.97,135.93,10.64059392]
[1745276475489,17.99515742,135.97,135.92,27.2549174]
[1745276475693,17.99515742,135.97,135.93,10.64059392]
[1745276475909,7.3545635,135.97,135.93,10.64059392]
[1745276477513,7.35415306,135.98,135.95,10.64059392]
[1745276478214,7.7399,136.0,135.93,18.64964886]
[1745276478420,7.7399,136.0,135.96,10.64059392]
[1745276478792,7.7399,136.0,135.93,18.64964886]
[1745276479019,18.38049392,136.0,135.94,0.14216157]
[1745276479323,10.64059392,135.99,135.94,10.78275549]
[1745276479614,10.64059392,135.99,135.95,10.64059392]
[1745276479819,25.73360779,136.0,135.95,10.64059392]
[1745276480018,10.64059392,135.99,135.95,10.64059392]
[1745276480227,10.64059392,135.99,135.92,27.2549174]
[1745276480522,10.64059392,135.99,135.95,10.64059392]
[1745276480694,10.64059392,135.99,135.93,0.14216157]
[1745276480899,10.64059392,135.99,135.95,10.64059392]
[1745276481621,7.35402265,135.98,135.95,10.64059392]
[1745276482422,7.35367486,135.99,135.96,10.64059392]
[1745276483318,89.15279105,136.01,135.97,10.64059392]
[1745276483521,89.15279105,136.01,135.98,10.64059392]
[1745276483699,7.35279105,136.01,135.98,10.64059392]
[1745276485907,21.73189454,136.02,135.99,10.64059392]
[1745276488199,21.73189454,136.02,135.98,10.64059392]
[1745276488932,32.37248846,136.02,135.97,0.14216157]
[1745276489120,10.64059392,136.01,135.97,10.64059392]
[1745276489321,10.64059392,136.01,135.96,10.64059392]
[1745276489529,10.64059392,136.0,135.95,36.64059392]
[1745276489712,10.64059392,136.0,135.95,10.64059392]
[1745276490233,7.35402265,135.98,135.95,10.64059392]
[1745276490916,7.35402265,135.98,135.94,10.64059392]
[1745276491122,10.64059392,135.97,135.92,37.89551132]
[1745276491318,10.64059392,135.97,135.92,1.2549174]
[1745276491519,10.64059392,135.97,135.92,11.89551132]
[1745276491928,10.64059392,135.97,135.92,1.2549174]
[1745276492236,10.64059392,135.97,135.92,11.89551132]
[1745276492413,7.35510444,135.96,135.92,11.89551132]
[1745276494515,10.64059392,135.96,135.92,11.89551132]
[1745276495425,10.64059392,135.96,135.92,1.2549174]
[1745276495926,10.64059392,135.97,135.92,11.89551132]
[1745276497822,7.35510444,135.96,135.92,11.89551132]
[1745276498322,17.99569836,135.96,135.92,1.2549174]
[1745276499909,10.64059392,135.95,135.92,1.2549174]
[1745276500538,17.99569836,135.96,135.92,1.2549174]
[1745276503516,7.35510444,135.96,135.92,1.2549174]
[1745276503917,17.99569836,135.96,135.92,1.2549174]
[1745276508326,36.38345946,135.96,135.92,1.2549174]
[1745276509650,10.64059392,135.95,135.92,1.2549174]
[1745276511055,7.35618655,135.94,135.92,1.2549174]
[1745276512564,10.64059392,135.93,135.92,1.2549174]
[1745276514448,25.84322164,135.93,135.92,1.2549174]
[1745276515152,70.4928705,135.93,135.92,1e-08]
[1745276515322,51.84322164,135.93,135.92,1e-08]
[1745276515644,70.4928705,135.93,135.92,1e-08]
[1745276518364,70.63503207,135.93,135.92,1e-08]
[1745276519470,18.64964886,135.92,135.83,36.64059392]
[1745276519654,96.18,135.91,135.83,36.64059392]
[1745276519854,10.64059392,135.88,135.83,36.64059392]
[1745276520573,7.35997644,135.87,135.83,36.64059392]
[1745276521067,10.64059392,135.86,135.81,0.14216157]
[1745276521247,10.64059392,135.86,135.82,10.64059392]
[1745276521449,18.00057036,135.87,135.82,10.64059392]
[1745276521765,7.35997644,135.87,135.82,10.64059392]
[1745276521978,10.64059392,135.86,135.82,10.64059392]
[1745276522149,10.64059392,135.86,135.81,10.64059392]
[1745276522346,10.64059392,135.86,135.8,1.6188]
[1745276522646,18.00273777,135.83,135.78,18.64964886]
[1745276522848,18.00273777,135.83,135.79,10.64059392]
[1745276522849,7.36214385,135.83,135.79,10.64059392]
[1745276523455,18.00273777,135.83,135.77,1.6188]
[1745276523662,40.38,135.86,135.77,1.6188]
[1745276523663,51.02059392,135.86,135.81,10.64059392]
[1745276523862,10.64059392,135.84,135.78,26.0]
[1745276524069,10.64059392,135.83,135.79,10.64059392]
[1745276524267,10.64059392,135.83,135.77,1.6188]
[1745276524268,10.64059392,135.82,135.77,12.25939392]
[1745276524466,14.38,135.81,135.77,12.25939392]
[1745276524674,14.38,135.81,135.77,1.6188]
[1745276524877,25.02059392,135.81,135.76,36.64059392]
[1745276525257,25.02059392,135.81,135.72,125.138]
[1745276525258,10.64059392,135.79,135.71,1.6188]
[1745276525456,10.64059392,135.79,135.74,10.64059392]
[1745276525668,10.64059392,135.8,135.72,44.64964886]
[1745276526053,10.64059392,135.8,135.75,10.64059392]
[1745276526255,26.49554886,135.74,135.61,45.89464349]
[1745276526481,10.64059392,135.71,135.61,45.89464349]
[1745276526692,18.00938014,135.71,135.65,10.64059392]
[1745276527187,18.00938014,135.71,135.66,10.64059392]
[1745276528152,7.36878622,135.71,135.64,1.2549174]
[1745276528355,7.36878622,135.71,135.65,10.64059392]
[1745276528356,10.64059392,135.7,135.65,10.64059392]
[1745276528677,18.00887895,135.72,135.67,10.64059392]
[1745276528851,14.4,135.71,135.68,10.64059392]
[1745276529051,14.4,135.71,135.69,10.64059392]
[1745276529263,14.4,135.71,135.68,16.71668089]
[1745276530064,14.4,135.72,135.7,16.71668089]
[1745276531263,14.4,135.72,135.69,16.71668089]
[1745276535278,7.36757621,135.73,135.69,16.71668089]
[1745276535484,7.36757621,135.73,135.68,18.79181043]
[1745276535677,7.36757621,135.73,135.69,16.71668089]
[1745276536061,7.36757621,135.73,135.68,18.79181043]
[1745276536265,38.48383091,135.74,135.7,16.71668089]
[1745276536466,21.76715002,135.74,135.7,16.71668089]
[1745276536680,14.4,135.74,135.7,16.71668089]
[1745276537571,21.76707,135.74,135.7,16.71668089]
[1745276538198,14.4,135.74,135.71,16.71668089]
[1745276538566,14.4,135.74,135.68,44.79181043]
[1745276538567,14.4,135.74,135.7,16.71668089]
[1745276539293,21.76704655,135.74,135.7,16.71668089]
[1745276541490,14.4,135.73,135.68,16.71668089]
[1745276542084,14.4,135.73,135.66,44.79181043]
[1745276542274,7.36593989,135.76,135.72,16.71668089]
[1745276543596,7.36556617,135.77,135.74,16.71668089]
[1745276544291,7.36556617,135.77,135.73,16.71668089]
[1745276545595,24.08224706,135.77,135.72,16.71668089]
[1745276546197,7.36556617,135.77,135.73,16.71668089]
[1745276546609,7.36556617,135.77,135.74,16.71668089]
[1745276548401,16.71668089,135.77,135.7,99.69764886]
[1745276548586,16.71668089,135.76,135.71,16.71668089]
[1745276548794,7.36485491,135.78,135.72,16.71668089]
[1745276549001,24.0815358,135.78,135.73,16.71668089]
[1745276549399,10.69059948,135.77,135.72,10.69059948]
[1745276549701,10.69059948,135.77,135.71,10.69059948]
[1745276550009,10.69059948,135.77,135.72,10.69059948]
[1745276550505,7.36593989,135.76,135.7,99.69764886]
[1745276550905,7.36593989,135.76,135.72,10.69059948]
[1745276551992,7.36593989,135.76,135.7,99.69764886]
[1745276552494,7.36593989,135.76,135.72,10.69059948]
[1745276555687,7.36593989,135.76,135.71,10.69059948]
[1745276556213,7.36593989,135.76,135.72,10.69059948]
[1745276557824,36.46759167,135.78,135.72,10.69059948]
[1745276560418,25.77699219,135.78,135.72,10.69059948]
[1745276560621,25.77699219,135.78,135.74,10.69059948]
[1745276561009,7.36485491,135.78,135.75,10.69059948]
[1745276562706,7.36485491,135.78,135.74,10.69059948]
[1745276562908,10.69059948,135.77,135.71,0.14216157]
[1745276563206,10.69059948,135.77,135.72,10.69059948]
[1745276563406,10.69059948,135.77,135.71,10.83276105]
[1745276563621,10.69059948,135.77,135.71,0.14216157]
[1745276563817,10.69059948,135.77,135.71,10.83276105]
[1745276564122,7.36593989,135.76,135.71,10.83276105]
[1745276564306,7.36593989,135.76,135.72,10.69059948]
[1745276565630,7.36593989,135.76,135.71,10.69059948]
[1745276566004,21.98593989,135.76,135.71,10.69059948]
[1745276566327,32.67653937,135.76,135.71,10.69059948]
[1745276566508,21.98593989,135.76,135.72,10.69059948]
[1745276567626,32.67653937,135.76,135.71,10.69059948]
[1745276568630,21.98593989,135.76,135.72,10.69059948]
[1745276569903,21.98593989,135.76,135.71,10.69059948]
[1745276570702,21.98593989,135.76,135.7,20.29214886]
[1745276570703,10.69059948,135.75,135.7,10.69059948]
[1745276570903,10.69059948,135.75,135.69,26.14216157]
[1745276570904,10.69059948,135.73,135.68,10.69059948]
[1745276571311,10.69059948,135.74,135.69,10.69059948]
[1745276572014,7.36756796,135.73,135.69,10.69059948]
[1745276572531,18.05816744,135.73,135.68,10.69059948]
[1745276572701,18.05816744,135.73,135.67,18.64964886]
[1745276572904,18.05816744,135.73,135.68,10.69059948]
[1745276580433,18.05816744,135.73,135.67,29.34024834]
[1745276581432,10.69059948,135.72,135.66,108.6905]
[1745276581618,10.69059948,135.7,135.66,26.0]
[1745276581818,10.69059948,135.7,135.65,10.69059948]
[1745276582025,10.69059948,135.69,135.64,37.94551688]
[1745276583337,7.37028301,135.68,135.64,37.94551688]
[1745276584025,18.06088249,135.68,135.64,1.2549174]
[1745276586837,18.06088249,135.68,135.64,11.94551688]
[1745276587541,10.69059948,135.67,135.64,1.2549174]
[1745276588032,7.37028301,135.68,135.64,11.94551688]
[1745276588237,7.37028301,135.68,135.65,10.69059948]
[1745276588631,18.06088249,135.68,135.64,1.2549174]
[1745276589028,7.37028301,135.68,135.64,11.94551688]
[1745276589429,7.37028301,135.68,135.64,1.2549174]
[1745276589627,7.37028301,135.68,135.64,11.94551688]
[1745276591142,99.86052709,135.69,135.64,11.94551688]
[1745276591746,18.06052709,135.69,135.64,11.94551688]
[1745276592231,7.36992761,135.69,135.65,10.69059948]
[1745276592438,7.36941026,135.7,135.66,10.69059948]
[1745276592731,126.22037215,135.72,135.67,10.69059948]
[1745276592732,10.69059948,135.72,135.67,10.69059948]
[1745276593026,18.05895235,135.72,135.67,10.69059948]
[1745276593224,18.05895235,135.72,135.68,10.69059948]
[1745276593424,7.36835287,135.72,135.68,10.69059948]
[1745276594046,18.05895235,135.72,135.68,10.69059948]
[1745276594420,18.05895235,135.72,135.67,10.69059948]
[1745276595747,10.69059948,135.71,135.65,18.79181043]
[1745276595928,10.69059948,135.71,135.66,10.69059948]
[1745276596128,7.36919675,135.7,135.66,10.69059948]
[1745276597953,18.05979623,135.7,135.65,29.48240991]
[1745276601055,7.36919675,135.7,135.66,10.69059948]
[1745276601351,18.05979623,135.7,135.64,2.7865174]
[1745276601751,10.69059948,135.69,135.64,11.94551688]
[1745276602059,7.37028301,135.68,135.64,11.94551688]
[1745276602853,7.37028301,135.68,135.65,10.69059948]
[1745276604458,7.36919675,135.7,135.65,10.69059948]
[1745276604650,7.36919675,135.7,135.66,10.69059948]
[1745276607561,36.48278812,135.7,135.64,1.2549174]
[1745276607869,36.48278812,135.7,135.65,10.69059948]
[1745276608043,10.69059948,135.69,135.64,11.94551688]
[1745276609164,7.36973984,135.69,135.65,10.69059948]
[1745276609346,18.06033932,135.69,135.64,11.94551688]
[1745276610337,10.69059948,135.68,135.64,1.2549174]
[1745276610542,25.15059948,135.68,135.64,1.2549174]
[1745276611246,7.37082626,135.67,135.64,1.2549174]
[1745276611446,18.06142574,135.67,135.64,1.2549174]
[1745276612471,7.37082626,135.67,135.64,1.2549174]
[1745276613275,36.48849141,135.67,135.64,1.2549174]
[1745276614063,7.37053688,135.68,135.64,1.2549174]
[1745276614278,7.36987898,135.69,135.66,10.69059948]
[1745276614457,7.36987898,135.69,135.67,10.69059948]
[1745276614657,7.36934939,135.7,135.67,10.69059948]
[1745276614855,7.36934939,135.7,135.65,10.69059948]
[1745276615058,7.36934939,135.7,135.67,10.69059948]
[1745276615259,21.82887271,135.71,135.67,10.69059948]
[1745276615467,21.82887271,135.71,135.68,10.69059948]
[1745276615855,21.82887271,135.71,135.66,26.0]
[1745276616053,21.82887271,135.71,135.67,10.69059948]
[1745276617578,21.82887271,135.71,135.65,0.14216157]
[1745276617775,32.51947219,135.71,135.66,10.69059948]
[1745276617963,32.51947219,135.71,135.65,18.79181043]
[1745276618268,32.51947219,135.71,135.66,10.69059948]
[1745276618960,10.69059948,135.7,135.64,1.2549174]
[1745276619374,10.69059948,135.7,135.65,10.69059948]
[1745276620876,7.36973984,135.69,135.64,11.94551688]
[1745276622877,7.36973984,135.69,135.65,10.69059948]
[1745276624074,7.36973984,135.69,135.66,10.69059948]
[1745276625578,7.36919675,135.7,135.66,10.69059948]
[1745276626877,7.36919675,135.7,135.67,10.69059948]
[1745276632085,7.36919675,135.7,135.66,10.69059948]
[1745276636888,7.36919675,135.7,135.66,10.19059948]
[1745276644193,18.05979623,135.7,135.64,30.73732731]
[1745276645396,10.69059948,135.69,135.64,30.73732731]
[1745276646796,7.37028301,135.68,135.64,30.73732731]
[1745276648087,7.37028301,135.68,135.65,10.69059948]
[1745276648902,7.36973984,135.69,135.64,20.04672783]
[1745276649205,7.36973984,135.69,135.65,10.69059948]
[1745276651308,10.69059948,135.68,135.64,1.2549174]
[1745276651597,10.69059948,135.67,135.64,1.2549174]
[1745276652295,10.69059948,135.65,135.64,1.2549174]
[1745276653807,18.06251249,135.65,135.64,1.2549174]
[1745276656202,99.86251249,135.65,135.64,1.2549174]
[1745276656503,10.69059948,135.63,135.59,10.69059948]
[1745276656881,10.69059948,135.63,135.57,26.0]
[1745276657082,10.69059948,135.63,135.59,10.69059948]
[1745276657606,10.69059948,135.63,135.58,10.69059948]
[1745276657991,18.06468693,135.61,135.55,44.64964886]
[1745276658196,18.06468693,135.61,135.56,10.69059948]
[1745276658489,7.37408745,135.61,135.57,10.69059948]
[1745276658903,18.06468693,135.61,135.55,26.0]
[1745276659090,18.06468693,135.61,135.56,10.69059948]
[1745276659286,10.69059948,135.59,135.53,107.048]
[1745276659605,10.69059948,135.59,135.53,26.0]
[1745276659991,10.69059948,135.58,135.54,10.69059948]
[1745276660297,7.37626318,135.57,135.54,10.69059948]
[1745276661208,7.37571913,135.58,135.54,10.69059948]
[1745276662205,7.37571913,135.58,135.5,26.14216157]
[1745276662403,7.37571913,135.58,135.54,10.69059948]
[1745276663002,7.37571913,135.58,135.5,26.0]
[1745276663311,7.37571913,135.58,135.54,10.69059948]
[1745276663608,7.37571913,135.58,135.55,10.69059948]
[1745276664306,7.37571913,135.58,135.5,26.0]
[1745276664307,7.37571913,135.58,135.54,10.69059948]
[1745276664499,21.93571913,135.58,135.54,10.69059948]
[1745276664898,32.62631861,135.58,135.54,10.69059948]
[1745276666092,21.93571913,135.58,135.54,10.69059948]
[1745276667014,21.93571913,135.58,135.5,26.14216157]
[1745276667200,21.93571913,135.58,135.52,0.14216157]
[1745276667401,21.93571913,135.58,135.54,10.69059948]
[1745276668808,114.42631861,135.58,135.5,26.0]
[1745276669010,10.69059948,135.57,135.53,10.69059948]
[1745276669309,10.69059948,135.56,135.52,10.69059948]